[Event "23rd OIBM 2019"]
[Site "Gmund am Tegernsee"]
[Date "2019.10.27"]
[Round "2.39"]
[White "Danielmeier, Ralf"]
[Black "Zude, Arno"]
[Result "0-1"]
[ECO "C24"]
[WhiteElo "2054"]
[BlackElo "2372"]
[Annotator "NA"]
[PlyCount "64"]
[EventDate "2019.10.17"]
[EventType "swiss"]
[EventCountry "GER"]
[SourceTitle "playchess.com"]
[Source "ChessBase"]
[SourceQuality "1"]
[TimeControl "40/5400+30:1800+30"]

1. e4 {[%emt 0:00:00]} e5 {[%emt 0:00:00]} 2. Bc4 {[%emt 0:00:00]} Nf6 {[%emt 0:00:00]} 3. d3 {[%emt 0:00:07]} c6 {[%emt 0:00:13]} 4. Nf3 {[%emt 0:00:51]} Be7 {[%emt 0:00:41]} 5. O-O {[%emt 0:00:45]} d6 {[%emt 0:00:09]} 6. h3 {[%emt 0:00:43]} O-O {[%emt 0:00:13]} 7. Nc3 {[%emt 0:00:58]} Nbd7 {[%emt 0:03:49]} 8. a4 {[%emt 0:00:56]} h6 {[%emt 0:06:13]} 9. Be3 {[%emt 0:12:14]} Re8 {[%emt 0:02:45]} 10. Nh2 {[%emt 0:12:40]} Bf8 {[%emt 0:05:47]} 11. a5 {[%emt 0:04:10]} Nc5 {[%emt 0:05:15]} 12. Qf3 {[%emt 0:10:31]} Be6 {[%emt 0:11:13]} 13. Ng4 {[%emt 0:09:50]} Nxg4 {[%emt 0:10:15]} 14. Bxe6 {[%emt 0:04:42]} Rxe6 {[%emt 0:01:54]} 15. Bxc5 {[%emt 0:09:13]} Nf6 {[%emt 0:00:18]} 16. Be3 {[%emt 0:03:13]} d5 {[%emt 0:00:57]} 17. Bd2 {[%emt 0:04:11]} a6 {[%emt 0:03:25]} 18. g4 {[%emt 0:02:11]} Bb4 {[%emt 0:08:43]} 19. exd5 {[%emt 0:04:36]} cxd5 {[%emt 0:08:41]} 20. Nb1 {[%emt 0:02:01]} e4 {[%emt 0:02:53]} 21. Qd1 {[%emt 0:01:56]} Bd6 {[%emt 0:01:29]} 22. Nc3 {[%emt 0:04:35]} Bc7 {[%emt 0:07:29]} 23. Ne2 {[%emt 0:01:03]} Nxg4 {[%emt 0:06:37]} 24. hxg4 {[%emt 0:07:01]} Qh4 {[%emt 0:00:31]} 25. Bf4 {[%emt 0:02:20]} exd3 {[%emt 0:04:26]} 26. Qxd3 {[%emt 0:01:21]} Qxg4+ {[%emt 0:00:29]} 27. Bg3 {[%emt 0:00:36]} Rxe2 {[%emt 0:00:14]} 28. Ra4 {[%emt 0:00:38]} Re4 {[%emt 0:01:44]} 29. Rxe4 {[%emt 0:00:36]} dxe4 {[%emt 0:00:02]} 30. Qd1 {[%emt 0:00:03]} Qg5 {[%emt 0:01:14]} 31. Kg2 {[%emt 0:00:10]} Rd8 32. Qe1 {[%emt 0:01:07]} Rd2 {[%emt 0:01:57]} 0-1

[Event "23rd OIBM 2019"]
[Site "Gmund am Tegernsee"]
[Date "2019.10.27"]
[Round "2.40"]
[White "Moehn, Hans"]
[Black "Poelt, Christoph"]
[Result "1-0"]
[ECO "A05"]
[WhiteElo "2370"]
[BlackElo "2094"]
[Annotator "NA"]
[PlyCount "71"]
[EventDate "2019.10.17"]
[EventType "swiss"]
[EventCountry "GER"]
[SourceTitle "playchess.com"]
[Source "ChessBase"]
[SourceQuality "1"]
[TimeControl "40/5400+30:1800+30"]

1. Nf3 {[%emt 0:03:17]} Nf6 {[%emt 0:00:00]} 2. c4 {[%emt 0:00:06]} g6 {[%emt 0:00:00]} 3. d4 {[%emt 0:00:06]} Bg7 {[%emt 0:00:03]} 4. e3 {[%emt 0:00:07]} d5 {[%emt 0:01:20]} 5. cxd5 {[%emt 0:00:18]} Nxd5 {[%emt 0:00:09]} 6. e4 {[%emt 0:01:24]} Nb6 {[%emt 0:01:07]} 7. Be2 {[%emt 0:00:35]} Bg4 {[%emt 0:03:49]} 8. Nbd2 {[%emt 0:00:32]} O-O {[%emt 0:03:09]} 9. h3 {[%emt 0:05:15]} Be6 {[%emt 0:13:23]} 10. Nb3 {[%emt 0:09:38]} Bc4 {[%emt 0:10:27]} 11. Na5 {[%emt 0:05:37]} Bxe2 {[%emt 0:01:49]} 12. Qxe2 {[%emt 0:00:20]} Qc8 {[%emt 0:15:56]} 13. Bd2 {[%emt 0:12:42]} Na6 {[%emt 0:08:47]} 14. Rc1 {[%emt 0:01:26]} c6 {[%emt 0:02:23]} 15. d5 {[%emt 0:07:06]} c5 {[%emt 0:07:05]} 16. b4 {[%emt 0:04:57]} Nd7 {[%emt 0:01:41]} 17. O-O {[%emt 0:01:23]} b6 {[%emt 0:03:55]} 18. Nc6 {[%emt 0:07:30]} Re8 {[%emt 0:01:32]} 19. b5 {[%emt 0:00:31]} Nab8 {[%emt 0:01:13]} 20. e5 {[%emt 0:07:51]} Nf8 {[%emt 0:06:50]} 21. Bg5 {[%emt 0:04:41]} Nxc6 {[%emt 0:01:24]} 22. dxc6 {[%emt 0:00:33]} Ne6 {[%emt 0:01:55]} 23. Rfd1 {[%emt 0:01:01]} a6 {[%emt 0:02:38]} 24. a4 {[%emt 0:01:00]} axb5 {[%emt 0:02:13]} 25. axb5 {[%emt 0:00:05]} Ra5 {[%emt 0:01:05]} 26. Rd7 {[%emt 0:01:37]} Nc7 {[%emt 0:02:11]} 27. Rb1 {[%emt 0:01:13]} e6 {[%emt 0:00:22]} 28. Qc4 {[%emt 0:08:43]} Nd5 {[%emt 0:01:27]} 29. Rd1 {[%emt 0:01:13]} h6 {[%emt 0:01:00]} 30. R1xd5 {[%emt 0:01:14]} exd5 {[%emt 0:02:29]} 31. Qxd5 {[%emt 0:00:07]} Rf8 {[%emt 0:00:52]} 32. Be7 {[%emt 0:00:43]} Re8 {[%emt 0:00:21]} 33. e6 {[%emt 0:04:52]} fxe6 {[%emt 0:02:08]} 34. Qxe6+ {[%emt 0:00:05]} Kh8 {[%emt 0:00:10]} 35. Qxg6 {[%emt 0:03:24]} Rg8 {[%emt 0:00:49]} 36. Bf6 {[%emt 0:00:38]} 1-0

[Event "23rd OIBM 2019"]
[Site "Gmund am Tegernsee"]
[Date "2019.10.27"]
[Round "2.41"]
[White "Fehmer, Carsten"]
[Black "Ries, Berthold"]
[Result "1/2-1/2"]
[ECO "A04"]
[WhiteElo "2092"]
[BlackElo "1854"]
[Annotator "NA"]
[PlyCount "80"]
[EventDate "2019.10.17"]
[EventType "swiss"]
[EventCountry "GER"]
[SourceTitle "playchess.com"]
[Source "ChessBase"]
[SourceQuality "1"]
[TimeControl "40/5400+30:1800+30"]

1. Nf3 {[%emt 0:00:00]} c5 {[%emt 0:00:10]} 2. c4 {[%emt 0:00:43]} Nc6 {[%emt 0:00:20]} 3. g3 {[%emt 0:00:18]} e5 {[%emt 0:01:06]} 4. Nc3 {[%emt 0:00:47]} Nf6 {[%emt 0:01:14]} 5. Bg2 {[%emt 0:01:35]} Be7 {[%emt 0:03:18]} 6. O-O {[%emt 0:02:28]} O-O {[%emt 0:02:44]} 7. Ne1 {[%emt 0:09:50]} d6 {[%emt 0:10:44]} 8. Nc2 {[%emt 0:02:41]} Be6 {[%emt 0:07:23]} 9. Ne3 {[%emt 0:01:09]} Qd7 {[%emt 0:03:10]} 10. d3 {[%emt 0:15:02]} Bh3 {[%emt 0:04:21]} 11. Ned5 {[%emt 0:02:47]} Bxg2 {[%emt 0:07:43]} 12. Nxf6+ {[%emt 0:03:11]} Bxf6 {[%emt 0:01:26]} 13. Kxg2 {[%emt 0:00:08]} g6 {[%emt 0:04:13]} 14. e4 {[%emt 0:07:41]} Bg7 {[%emt 0:06:38]} 15. Nd5 {[%emt 0:10:48]} Ne7 {[%emt 0:01:52]} 16. Nxe7+ {[%emt 0:02:30]} Qxe7 {[%emt 0:00:16]} 17. f3 {[%emt 0:01:45]} Qd7 {[%emt 0:06:00]} 18. a4 {[%emt 0:03:00]} b6 {[%emt 0:05:12]} 19. Bd2 {[%emt 0:05:34]} a6 {[%emt 0:08:29]} 20. Qc2 {[%emt 0:05:11]} f5 {[%emt 0:03:33]} 21. Rfb1 {[%emt 0:03:43]} f4 {[%emt 0:02:36]} 22. g4 {[%emt 0:00:36]} a5 {[%emt 0:00:12]} 23. Qd1 {[%emt 0:03:49]} Bf6 {[%emt 0:02:07]} 24. Qb3 {[%emt 0:02:30]} Rab8 {[%emt 0:01:48]} 25. Qb5 {[%emt 0:04:15]} Qxb5 {[%emt 0:00:26]} 26. axb5 {[%emt 0:00:10]} Ra8 {[%emt 0:02:04]} 27. Be1 {[%emt 0:01:02]} h6 {[%emt 0:00:39]} 28. Bf2 {[%emt 0:00:49]} Kg7 {[%emt 0:00:50]} 29. Rg1 {[%emt 0:01:01]} Rh8 {[%emt 0:01:04]} 30. h4 {[%emt 0:01:35]} g5 {[%emt 0:01:02]} 31. hxg5 {[%emt 0:03:04]} hxg5 {[%emt 0:00:11]} 32. Rh1 {[%emt 0:00:16]} Rxh1 {[%emt 0:00:33]} 33. Kxh1 {[%emt 0:00:16]} Be7 {[%emt 0:00:28]} 34. Kg2 {[%emt 0:00:19]} Bd8 {[%emt 0:01:17]} 35. Be1 {[%emt 0:01:27]} Rc8 {[%emt 0:01:44]} 36. Bf2 {[%emt 0:01:15]} Bc7 {[%emt 0:01:58]} 37. Rh1 {[%emt 0:00:45]} Rh8 {[%emt 0:00:09]} 38. Ra1 {[%emt 0:01:40]} Re8 {[%emt 0:01:43]} 39. Be1 {[%emt 0:00:30]} Rc8 {[%emt 0:03:05]} 40. Bf2 {[%emt 0:01:04]} Re8 {[%emt 0:00:17]} 1/2-1/2

[Event "23rd OIBM 2019"]
[Site "Gmund am Tegernsee"]
[Date "2019.10.27"]
[Round "2.43"]
[White "Lipinsky, Markus"]
[Black "Baum, Jonasz"]
[Result "0-1"]
[ECO "D31"]
[WhiteElo "2005"]
[BlackElo "2341"]
[Annotator "NA"]
[PlyCount "50"]
[EventDate "2019.10.17"]
[EventType "swiss"]
[EventCountry "GER"]
[SourceTitle "playchess.com"]
[Source "ChessBase"]
[SourceQuality "1"]
[TimeControl "40/5400+30:1800+30"]

1. d4 {[%emt 0:00:00]} d5 {[%emt 0:00:00]} 2. c4 {[%emt 0:00:00]} e6 {[%emt 0:00:00]} 3. Nc3 {[%emt 0:00:00]} a6 {[%emt 0:02:52]} 4. cxd5 {[%emt 0:00:44]} exd5 {[%emt 0:00:04]} 5. Bf4 {[%emt 0:00:18]} Nf6 {[%emt 0:00:14]} 6. e3 {[%emt 0:00:28]} Bd6 {[%emt 0:00:14]} 7. Bxd6 {[%emt 0:00:38]} Qxd6 {[%emt 0:00:05]} 8. Bd3 {[%emt 0:00:17]} O-O {[%emt 0:00:14]} 9. Nge2 {[%emt 0:00:28]} Re8 {[%emt 0:01:08]} 10. Qc2 {[%emt 0:01:38]} Nbd7 {[%emt 0:01:59]} 11. h3 {[%emt 0:04:29]} b5 {[%emt 0:11:25]} 12. a3 {[%emt 0:03:25]} Bb7 {[%emt 0:04:19]} 13. Ng3 {[%emt 0:23:09]} c5 {[%emt 0:18:00]} 14. Nf5 {[%emt 0:09:12]} Qc6 {[%emt 0:03:15]} 15. O-O {[%emt 0:10:37]} c4 {[%emt 0:05:34]} 16. Be2 {[%emt 0:00:31]} g6 {[%emt 0:01:43]} 17. Nh6+ {[%emt 0:01:38]} Kg7 {[%emt 0:00:19]} 18. Ng4 {[%emt 0:00:18]} a5 {[%emt 0:08:13]} 19. b4 {[%emt 0:11:49]} axb4 {[%emt 0:01:19]} 20. axb4 {[%emt 0:03:53]} Ne4 {[%emt 0:06:43]} 21. Rfd1 {[%emt 0:09:18]} Nxc3 {[%emt 0:02:39]} 22. Qxc3 {[%emt 0:00:05]} h5 {[%emt 0:00:34]} 23. Rxa8 {[%emt 0:13:07]} Rxa8 {[%emt 0:01:20]} 24. Ne5 {[%emt 0:00:04]} Nxe5 {[%emt 0:00:32]} 25. dxe5 {[%emt 0:00:00]} d4 {[%emt 0:00:17]} 0-1

[Event "23rd OIBM 2019"]
[Site "Gmund am Tegernsee"]
[Date "2019.10.27"]
[Round "2.44"]
[White "Mooser, Nicolas"]
[Black "Braeuer, Franz"]
[Result "1/2-1/2"]
[ECO "E01"]
[WhiteElo "1999"]
[BlackElo "2429"]
[Annotator "NA"]
[PlyCount "55"]
[EventDate "2019.10.17"]
[EventType "swiss"]
[EventCountry "GER"]
[SourceTitle "playchess.com"]
[Source "ChessBase"]
[SourceQuality "1"]
[TimeControl "40/5400+30:1800+30"]

1. d4 {[%emt 0:00:00]} Nf6 {[%emt 0:02:04]} 2. c4 {[%emt 0:00:00]} e6 {[%emt 0:00:01]} 3. g3 {[%emt 0:00:00]} d5 {[%emt 0:00:03]} 4. Bg2 {[%emt 0:00:00]} Bb4+ {[%emt 0:00:05]} 5. Bd2 {[%emt 0:00:15]} Be7 {[%emt 0:00:05]} 6. Nf3 {[%emt 0:00:11]} c6 {[%emt 0:00:04]} 7. O-O {[%emt 0:00:13]} b6 {[%emt 0:00:53]} 8. Qc2 {[%emt 0:02:07]} Nbd7 {[%emt 0:04:32]} 9. Rd1 {[%emt 0:03:21]} O-O {[%emt 0:01:52]} 10. b3 {[%emt 0:03:12]} a5 {[%emt 0:01:02]} 11. Bf4 {[%emt 0:19:50]} Ba6 {[%emt 0:03:43]} 12. Nc3 {[%emt 0:06:33]} Rc8 {[%emt 0:13:38]} 13. Qb2 {[%emt 0:06:19]} dxc4 {[%emt 0:04:30]} 14. bxc4 {[%emt 0:00:11]} Bxc4 {[%emt 0:00:33]} 15. Ne5 {[%emt 0:01:27]} Nxe5 {[%emt 0:00:40]} 16. dxe5 {[%emt 0:03:14]} Nd7 {[%emt 0:02:52]} 17. Rd4 {[%emt 0:01:56]} Bd5 {[%emt 0:21:11]} 18. Rad1 {[%emt 0:12:58]} Bc5 {[%emt 0:00:12]} 19. R4d2 {[%emt 0:07:43]} g5 {[%emt 0:03:39]} 20. Be3 {[%emt 0:02:42]} Bxe3 {[%emt 0:06:03]} 21. fxe3 {[%emt 0:00:07]} Qc7 {[%emt 0:00:48]} 22. e4 Nxe5 {[%emt 0:00:58]} 23. exd5 {[%emt 0:04:13]} cxd5 {[%emt 0:00:11]} 24. Nb5 {[%emt 0:02:53]} Qc5+ {[%emt 0:01:04]} 25. Kh1 {[%emt 0:00:23]} Nc4 {[%emt 0:12:49]} 26. Qf6 {[%emt 0:00:33]} Nxd2 {[%emt 0:07:34]} 27. Qxg5+ {[%emt 0:00:21]} Kh8 {[%emt 0:00:04]} 28. Qf6+ {[%emt 0:00:17]} 1/2-1/2

[Event "23rd OIBM 2019"]
[Site "Gmund am Tegernsee"]
[Date "2019.10.28"]
[Round "3.6"]
[White "Gschnitzer, Adrian"]
[Black "Idani, Pouya"]
[Result "0-1"]
[ECO "A10"]
[WhiteElo "2412"]
[BlackElo "2568"]
[Annotator "RC"]
[PlyCount "36"]
[EventDate "2019.10.17"]
[EventType "swiss"]
[EventCountry "GER"]
[SourceTitle "playchess.com"]
[Source "ChessBase"]
[SourceQuality "1"]
[TimeControl "40/5400+30:1800+30"]

1. c4 {[%emt 0:00:00]} g6 {[%emt 0:03:30]} 2. e4 {[%emt 0:00:23]} e5 {[%emt 0:00:38]} 3. Nf3 {[%emt 0:02:16]} Bg7 {[%emt 0:02:40]} 4. d4 {[%emt 0:01:35]} exd4 {[%emt 0:00:39]} 5. Nxd4 {[%emt 0:00:10]} Nc6 {[%emt 0:00:42]} 6. Nxc6 {[%emt 0:03:32]} dxc6 {[%emt 0:02:15]} 7. Qxd8+ {[%emt 0:01:18]} Kxd8 {[%emt 0:00:04]} 8. Nc3 {[%emt 0:00:40]} Be6 {[%emt 0:02:10]} 9. Bg5+ {[%emt 0:01:13]} Kc8 {[%emt 0:00:40]} 10. O-O-O {[%emt 0:00:56]} Nf6 {[%emt 0:00:08]} 11. f3 {[%emt 0:03:53]} Nd7 {[%emt 0:03:01]} 12. Kc2 {[%emt 0:08:53]} a6 {[%emt 0:05:21]} 13. Nd5 {[%emt 0:17:11]} f6 {[%emt 0:01:22]} 14. Nf4 {[%emt 0:02:31]} Bf7 {[%emt 0:00:15]} 15. Bh4 {[%emt 0:04:02]} g5 {[%emt 0:00:58]} 16. g3 {[%emt 0:00:11]} Ne5 {[%emt 0:03:54]} 17. Bh3+ {[%emt 0:00:46]} Kb8 {[%emt 0:00:14]} 18. Be6 {[%emt 0:01:42]} Rf8 {[%emt 0:07:49]} 0-1

[Event "23rd OIBM 2019"]
[Site "Gmund am Tegernsee"]
[Date "2019.10.28"]
[Round "3.21"]
[White "Chanda, Sandipan"]
[Black "Lederle, Vitus"]
[Result "1-0"]
[ECO "D02"]
[WhiteElo "2529"]
[BlackElo "2223"]
[Annotator "RC"]
[PlyCount "83"]
[EventDate "2019.10.17"]
[EventType "swiss"]
[EventCountry "GER"]
[SourceTitle "playchess.com"]
[Source "ChessBase"]
[SourceQuality "1"]
[TimeControl "40/5400+30:1800+30"]

1. d4 {[%emt 0:01:14]} d5 {[%emt 0:00:00]} 2. Nf3 {[%emt 0:00:50]} Nf6 {[%emt 0:00:10]} 3. Bf4 {[%emt 0:00:24]} c5 {[%emt 0:01:25]} 4. e3 {[%emt 0:00:10]} Nc6 {[%emt 0:00:40]} 5. Nbd2 {[%emt 0:00:11]} Bg4 {[%emt 0:01:37]} 6. c3 {[%emt 0:02:04]} e6 {[%emt 0:00:37]} 7. Qb3 {[%emt 0:00:15]} Qb6 {[%emt 0:04:51]} 8. Qxb6 {[%emt 0:00:14]} axb6 {[%emt 0:00:02]} 9. Bb5 {[%emt 0:00:44]} Nd7 {[%emt 0:02:43]} 10. h3 {[%emt 0:00:13]} Bh5 {[%emt 0:02:59]} 11. g4 {[%emt 0:00:13]} Bg6 {[%emt 0:00:05]} 12. Kf1 {[%emt 0:00:23]} Be7 {[%emt 0:02:17]} 13. Kg2 {[%emt 0:00:14]} O-O {[%emt 0:03:37]} 14. h4 {[%emt 0:00:39]} h5 {[%emt 0:08:05]} 15. g5 {[%emt 0:00:14]} Rfc8 {[%emt 0:16:33]} 16. Rhe1 {[%emt 0:01:04]} cxd4 {[%emt 0:02:12]} 17. exd4 {[%emt 0:00:31]} Nf8 {[%emt 0:02:56]} 18. a3 {[%emt 0:02:59]} Ra5 {[%emt 0:07:06]} 19. Bf1 {[%emt 0:04:12]} Raa8 {[%emt 0:01:12]} 20. c4 {[%emt 0:08:58]} Bf5 {[%emt 0:03:59]} 21. Rac1 {[%emt 0:02:38]} Ng6 {[%emt 0:01:58]} 22. Bg3 {[%emt 0:01:01]} Bf8 {[%emt 0:05:37]} 23. cxd5 {[%emt 0:04:02]} exd5 {[%emt 0:00:11]} 24. Rc3 {[%emt 0:00:43]} Na7 {[%emt 0:11:36]} 25. Rb3 {[%emt 0:09:42]} Rc6 {[%emt 0:05:50]} 26. Ne5 {[%emt 0:01:02]} Nxe5 {[%emt 0:00:55]} 27. dxe5 {[%emt 0:00:29]} Bc2 {[%emt 0:02:00]} 28. Rf3 {[%emt 0:00:18]} Rd8 {[%emt 0:02:45]} 29. Kh2 {[%emt 0:05:10]} b5 {[%emt 0:00:37]} 30. Bh3 {[%emt 0:11:12]} Bg6 {[%emt 0:03:02]} 31. e6 {[%emt 0:04:16]} fxe6 {[%emt 0:00:14]} 32. Bxe6+ {[%emt 0:03:07]} Kh7 {[%emt 0:00:04]} 33. Nb3 {[%emt 0:01:46]} Bd6 {[%emt 0:04:44]} 34. Bf5 {[%emt 0:06:52]} Bxg3+ {[%emt 0:00:19]} 35. Kxg3 {[%emt 0:00:13]} Bxf5 {[%emt 0:01:47]} 36. Rxf5 {[%emt 0:00:06]} Rd7 {[%emt 0:00:22]} 37. Nd4 {[%emt 0:02:29]} Rcd6 {[%emt 0:02:47]} 38. Ne6 {[%emt 0:02:16]} Kg6 {[%emt 0:00:18]} 39. Rf3 {[%emt 0:01:05]} Rf7 {[%emt 0:00:44]} 40. Nf8+ {[%emt 0:00:55]} Rxf8 {[%emt 0:00:18]} 41. Rxf8 {[%emt 0:30:07]} Nc6 {[%emt 0:02:13]} 42. f4 {[%emt 0:00:00]} 1-0

[Event "23rd OIBM 2019"]
[Site "Gmund am Tegernsee"]
[Date "2019.10.28"]
[Round "3.31"]
[White "Chennaoui, Yasin"]
[Black "Nasshan, Dennis"]
[Result "0-1"]
[ECO "A13"]
[WhiteElo "2162"]
[BlackElo "2306"]
[Annotator "RC"]
[PlyCount "123"]
[EventDate "2019.10.17"]
[EventType "swiss"]
[EventCountry "GER"]
[SourceTitle "playchess.com"]
[Source "ChessBase"]
[SourceQuality "1"]
[TimeControl "40/5400+30:1800+30"]

1. c4 {[%emt 0:00:00]} e6 {[%emt 0:05:03]} 2. Nf3 {[%emt 0:00:00]} Nf6 {[%emt 0:00:02]} 3. b3 {[%emt 0:00:11]} d5 {[%emt 0:00:01]} 4. g3 {[%emt 0:00:07]} Be7 {[%emt 0:00:01]} 5. Bg2 {[%emt 0:00:08]} O-O {[%emt 0:00:02]} 6. O-O {[%emt 0:00:07]} b6 {[%emt 0:00:01]} 7. Bb2 {[%emt 0:00:09]} c5 {[%emt 0:01:09]} 8. e3 {[%emt 0:01:12]} Nc6 {[%emt 0:00:06]} 9. Qe2 {[%emt 0:00:00]} Ba6 {[%emt 0:00:04]} 10. d3 {[%emt 0:00:57]} Qc7 {[%emt 0:02:22]} 11. Na3 {[%emt 0:00:27]} Rac8 {[%emt 0:01:40]} 12. Rfd1 {[%emt 0:00:47]} Rfd8 {[%emt 0:00:33]} 13. Rac1 {[%emt 0:02:08]} Qb8 {[%emt 0:00:07]} 14. Bc3 {[%emt 0:05:18]} dxc4 {[%emt 0:09:23]} 15. bxc4 {[%emt 0:04:49]} Ne8 {[%emt 0:01:03]} 16. Qb2 {[%emt 0:03:05]} Bf6 {[%emt 0:00:15]} 17. d4 {[%emt 0:11:47]} cxd4 {[%emt 0:01:48]} 18. exd4 {[%emt 0:03:23]} Ne7 {[%emt 0:05:06]} 19. Ne5 {[%emt 0:04:26]} Bb7 {[%emt 0:15:09]} 20. Ng4 {[%emt 0:15:56]} Bxg2 {[%emt 0:01:00]} 21. Kxg2 {[%emt 0:00:41]} Qa8+ {[%emt 0:00:05]} 22. f3 {[%emt 0:00:37]} Bg5 {[%emt 0:01:05]} 23. Bd2 {[%emt 0:01:22]} Bxd2 {[%emt 0:00:38]} 24. Qxd2 {[%emt 0:00:16]} Ng6 {[%emt 0:02:59]} 25. Qg5 {[%emt 0:09:04]} h6 {[%emt 0:03:07]} 26. Qh5 {[%emt 0:01:40]} Qb7 {[%emt 0:03:53]} 27. Ne5 {[%emt 0:16:25]} Nf6 {[%emt 0:03:24]} 28. Qh3 {[%emt 0:00:39]} Nxe5 {[%emt 0:00:20]} 29. dxe5 {[%emt 0:00:12]} Nd7 {[%emt 0:00:04]} 30. Qh4 {[%emt 0:00:54]} Qa8 {[%emt 0:13:39]} 31. Qf4 {[%emt 0:03:38]} Qb8 {[%emt 0:06:14]} 32. Nb5 {[%emt 0:00:45]} Nxe5 {[%emt 0:02:35]} 33. Nxa7 {[%emt 0:05:54]} Rxd1 {[%emt 0:02:51]} 34. Nxc8 {[%emt 0:02:58]} Rxc1 {[%emt 0:01:38]} 35. Ne7+ {[%emt 0:00:06]} Kf8 {[%emt 0:07:29]} 36. Ng6+ {[%emt 0:00:11]} Ke8 {[%emt 0:03:04]} 37. Nxe5 {[%emt 0:00:17]} Rc2+ {[%emt 0:00:04]} 38. Kh3 {[%emt 0:00:18]} Qc7 {[%emt 0:02:21]} 39. Qe4 {[%emt 0:05:25]} Rxa2 {[%emt 0:01:49]} 40. f4 {[%emt 0:00:14]} Ra5 {[%emt 0:01:16]} 41. Qh7 {[%emt 0:03:47]} Rxe5 {[%emt 0:00:24]} 42. Qh8+ {[%emt 0:00:11]} Ke7 {[%emt 0:00:21]} 43. fxe5 {[%emt 0:00:06]} Qxe5 {[%emt 0:00:03]} 44. Qa8 {[%emt 0:00:33]} Kf6 {[%emt 0:01:19]} 45. Qd8+ {[%emt 0:00:22]} Kg6 {[%emt 0:00:21]} 46. Qxb6 {[%emt 0:00:18]} Qh5+ {[%emt 0:00:19]} 47. Kg2 {[%emt 0:00:23]} Qe2+ {[%emt 0:00:02]} 48. Qf2 {[%emt 0:00:22]} Qxf2+ {[%emt 0:02:45]} 49. Kxf2 {[%emt 0:00:26]} Kf5 {[%emt 0:00:01]} 50. Ke3 {[%emt 0:00:36]} Ke5 {[%emt 0:00:01]} 51. h4 {[%emt 0:00:31]} g5 {[%emt 0:02:28]} 52. hxg5 {[%emt 0:03:32]} hxg5 {[%emt 0:00:04]} 53. Kf3 {[%emt 0:02:09]} f5 {[%emt 0:00:01]} 54. Ke3 {[%emt 0:00:08]} Kd6 {[%emt 0:00:12]} 55. Kd4 {[%emt 0:00:19]} e5+ {[%emt 0:00:01]} 56. Kd3 {[%emt 0:00:42]} Kc5 {[%emt 0:01:05]} 57. g4 {[%emt 0:00:07]} fxg4 {[%emt 0:01:02]} 58. Ke4 {[%emt 0:00:06]} Kxc4 {[%emt 0:00:15]} 59. Kxe5 {[%emt 0:00:05]} g3 {[%emt 0:00:11]} 60. Kf5 {[%emt 0:00:04]} g2 {[%emt 0:00:05]} 61. Kxg5 {[%emt 0:00:03]} g1=Q+ {[%emt 0:00:21]} 62. Kf4 {[%emt 0:00:03]} 0-1

[Event "23rd OIBM 2019"]
[Site "Gmund am Tegernsee"]
[Date "2019.10.28"]
[Round "3.32"]
[White "Ludvik, Tomas"]
[Black "Bopp, Thomas"]
[Result "1/2-1/2"]
[ECO "A43"]
[WhiteElo "2305"]
[BlackElo "2156"]
[Annotator "RC"]
[PlyCount "101"]
[EventDate "2019.10.17"]
[EventType "swiss"]
[EventCountry "GER"]
[SourceTitle "playchess.com"]
[Source "ChessBase"]
[SourceQuality "1"]
[TimeControl "40/5400+30:1800+30"]

1. d4 {[%emt 0:00:00]} c5 {[%emt 0:00:00]} 2. d5 {[%emt 0:00:49]} g6 {[%emt 0:00:00]} 3. e4 {[%emt 0:05:06]} Bg7 {[%emt 0:00:00]} 4. Nf3 {[%emt 0:00:46]} d6 {[%emt 0:00:23]} 5. Nc3 {[%emt 0:00:42]} Nf6 {[%emt 0:00:22]} 6. Be2 {[%emt 0:00:27]} O-O {[%emt 0:00:10]} 7. O-O {[%emt 0:04:29]} Bg4 {[%emt 0:08:06]} 8. h3 {[%emt 0:03:01]} Bxf3 {[%emt 0:00:03]} 9. Bxf3 {[%emt 0:00:06]} Na6 {[%emt 0:01:09]} 10. Re1 {[%emt 0:07:15]} Nd7 {[%emt 0:00:33]} 11. Be2 {[%emt 0:02:42]} Nc7 {[%emt 0:00:13]} 12. a4 {[%emt 0:01:35]} Rb8 {[%emt 0:04:00]} 13. Bf1 {[%emt 0:02:38]} b6 {[%emt 0:00:44]} 14. Nb5 {[%emt 0:03:16]} Ra8 {[%emt 0:02:32]} 15. c3 {[%emt 0:07:17]} a6 {[%emt 0:01:20]} 16. Nxc7 {[%emt 0:00:17]} Qxc7 {[%emt 0:00:11]} 17. Bg5 {[%emt 0:03:35]} Rfc8 {[%emt 0:08:30]} 18. f4 {[%emt 0:06:50]} c4 {[%emt 0:11:04]} 19. Bxe7 {[%emt 0:04:22]} f6 {[%emt 0:04:39]} 20. e5 {[%emt 0:05:40]} fxe5 {[%emt 0:03:17]} 21. Qg4 {[%emt 0:05:44]} Nc5 {[%emt 0:01:00]} 22. Bg5 {[%emt 0:04:15]} b5 {[%emt 0:03:20]} 23. fxe5 {[%emt 0:01:07]} Bxe5 {[%emt 0:00:24]} 24. Rad1 {[%emt 0:04:13]} Re8 {[%emt 0:10:58]} 25. axb5 {[%emt 0:06:00]} axb5 {[%emt 0:00:03]} 26. Bf4 {[%emt 0:03:13]} Bxf4 {[%emt 0:02:55]} 27. Qxf4 {[%emt 0:00:16]} Rxe1 {[%emt 0:09:04]} 28. Rxe1 {[%emt 0:00:47]} Rf8 {[%emt 0:00:26]} 29. Qh4 {[%emt 0:02:25]} Qf7 {[%emt 0:01:08]} 30. Be2 {[%emt 0:06:12]} Qf4 {[%emt 0:06:16]} 31. Qxf4 {[%emt 0:00:12]} Rxf4 {[%emt 0:00:01]} 32. Bf3 {[%emt 0:02:57]} Kf8 {[%emt 0:11:22]} 33. Re2 {[%emt 0:00:59]} h5 {[%emt 0:00:26]} 34. Kf2 {[%emt 0:02:15]} Rf7 {[%emt 0:04:51]} 35. Kg3 {[%emt 0:04:01]} Re7 {[%emt 0:01:06]} 36. Rf2 {[%emt 0:01:23]} Nd3 {[%emt 0:00:33]} 37. Rf1 {[%emt 0:00:08]} Re3 {[%emt 0:00:29]} 38. Rb1 {[%emt 0:00:54]} Ke7 {[%emt 0:02:11]} 39. b3 {[%emt 0:00:53]} Nc5 {[%emt 0:01:48]} 40. bxc4 {[%emt 0:00:30]} bxc4 {[%emt 0:00:02]} 41. Rc1 {[%emt 0:07:55]} g5 {[%emt 0:02:20]} 42. Kf2 {[%emt 0:01:53]} Re5 {[%emt 0:00:59]} 43. Be2 {[%emt 0:07:18]} Re4 {[%emt 0:02:04]} 44. Ra1 {[%emt 0:03:54]} h4 {[%emt 0:00:38]} 45. Ra7+ {[%emt 0:01:08]} Kf6 {[%emt 0:00:42]} 46. Rc7 {[%emt 0:01:36]} Nd3+ {[%emt 0:12:13]} 47. Kf3 {[%emt 0:00:34]} Rf4+ {[%emt 0:00:32]} 48. Ke3 {[%emt 0:00:08]} Ne5 {[%emt 0:02:26]} 49. Rc8 {[%emt 0:02:19]} Kf7 {[%emt 0:09:45]} 50. Rc7+ {[%emt 0:00:52]} Kf6 {[%emt 0:00:18]} 51. Rc8 {[%emt 0:00:15]} 1/2-1/2